[Event "December 5 Early 2023"]
[Site "https://www.chess.com"]
[Date "2023.12.05"]
[Round "6"]
[White "Bold, Andre"]
[Black "Souleidis, Georgios"]
[Result "0-1"]
[Board "104"]
[TimeControl "180+1"]
[WhiteFideId "16208471"]
[BlackFideId "4206827"]
[WhiteElo "2490"]
[BlackElo "2656"]
[WhiteTeam "GER"]
[BlackTeam "GRE"]
[WhiteClock "0:00:10"]
[BlackClock "0:00:28"]

1. Nf3 {[%clk 0:03:00]}  Nf6 {[%clk 0:02:59]} 2. e3 {[%clk 0:03:01]}  g6 {[%clk 0:03:00]} 3. b3 {[%clk 0:03:01]}  Bg7 {[%clk 0:03:00]} 4. Bb2 {[%clk 0:03:02]}  O-O {[%clk 0:03:00]} 5. Be2 {[%clk 0:03:02]}  c5 {[%clk 0:03:00]} 6. O-O {[%clk 0:03:02]}  b6 {[%clk 0:03:01]} 7. c4 {[%clk 0:03:01]}  Bb7 {[%clk 0:03:01]} 8. Nc3 {[%clk 0:03:02]}  Nc6 {[%clk 0:02:54]} 9. a3 {[%clk 0:03:01]}  d5 {[%clk 0:02:44]} 10. cxd5 {[%clk 0:02:50]}  Nxd5 {[%clk 0:02:45]} 11. Qc2 {[%clk 0:02:50]}  Qd7 {[%clk 0:02:40]} 12. Rac1 {[%clk 0:02:45]}  e5 {[%clk 0:02:34]} 13. Rfd1 {[%clk 0:02:39]}  Rac8 {[%clk 0:02:28]} 14. Nxd5 {[%clk 0:02:37]}  Qxd5 {[%clk 0:02:27]} 15. Qc4 {[%clk 0:02:17]}  Qd7 {[%clk 0:02:14]} 16. Qc2 {[%clk 0:02:02]}  Rfe8 {[%clk 0:02:12]} 17. d3 {[%clk 0:02:00]}  h6 {[%clk 0:01:58]} 18. h3 {[%clk 0:02:00]}  Qe6 {[%clk 0:01:58]} 19. Qc4 {[%clk 0:01:59]}  Qe7 {[%clk 0:01:58]} 20. Qc2 {[%clk 0:01:57]}  Na5 {[%clk 0:01:57]} 21. Bc3 {[%clk 0:01:55]}  Nc6 {[%clk 0:01:54]} 22. Bb2 {[%clk 0:01:54]}  Kh7 {[%clk 0:01:50]} 23. Qb1 {[%clk 0:01:52]}  Qe6 {[%clk 0:01:47]} 24. Qc2 {[%clk 0:01:49]}  Na5 {[%clk 0:01:44]} 25. Nd2 {[%clk 0:01:35]}  f5 {[%clk 0:01:35]} 26. Nc4 {[%clk 0:01:32]}  Nxc4 {[%clk 0:01:27]} 27. Qxc4 {[%clk 0:01:29]}  Bd5 {[%clk 0:01:28]} 28. Qa6 {[%clk 0:01:23]}  Bxb3 {[%clk 0:01:28]} 29. Rd2 {[%clk 0:01:19]}  Rc7 {[%clk 0:01:12]} 30. d4 {[%clk 0:00:52]}  exd4 {[%clk 0:01:12]} 31. exd4 {[%clk 0:00:46]}  c4 {[%clk 0:00:56]} 32. d5 {[%clk 0:00:44]}  Qc8 {[%clk 0:00:56]} 33. Qxc8 {[%clk 0:00:39]}  Rexc8 {[%clk 0:00:57]} 34. Bxg7 {[%clk 0:00:37]}  Kxg7 {[%clk 0:00:58]} 35. d6 {[%clk 0:00:37]}  Rd7 {[%clk 0:00:57]} 36. a4 {[%clk 0:00:31]}  a6 {[%clk 0:00:50]} 37. Rd4 {[%clk 0:00:27]}  b5 {[%clk 0:00:49]} 38. axb5 {[%clk 0:00:27]}  axb5 {[%clk 0:00:50]} 39. Bf3 {[%clk 0:00:22]}  Rc5 {[%clk 0:00:43]} 40. Kf1 {[%clk 0:00:20]}  Kf6 {[%clk 0:00:43]} 41. Rd3 {[%clk 0:00:13]}  cxd3 {[%clk 0:00:28]} 42. Rxc5 {[%clk 0:00:13]}  d2 {[%clk 0:00:27]} 43. Rxb5 {[%clk 0:00:10]}  d1=Q+ {[%clk 0:00:27]} 44. Bxd1 {[%clk 0:00:10]}  Bxd1 {[%clk 0:00:28]} 45. Rb6 {[%clk 0:00:10]}  Bc2 {[%clk 0:00:25]} 46. f3 {[%clk 0:00:10]}  f4 {[%clk 0:00:26]} 47. Kf2 {[%clk 0:00:10]}  Bf5 {[%clk 0:00:26]} 48. Ra6 {[%clk 0:00:10]}  Ke6 {[%clk 0:00:26]} 49. Rb6 {[%clk 0:00:10]}  Rxd6 {[%clk 0:00:27]} 50. Rb2 {[%clk 0:00:11]}  Kf6 {[%clk 0:00:27]} 51. Ra2 {[%clk 0:00:11]}  Rc6 {[%clk 0:00:27]} 52. Rb2 {[%clk 0:00:11]}  Rc2+ {[%clk 0:00:27]} 53. Rxc2 {[%clk 0:00:10]}  Bxc2 {[%clk 0:00:28]} 0-1

[Event "December 5 Early 2023"]
[Site "https://www.chess.com"]
[Date "2023.12.05"]
[Round "6"]
[White "Belov, Alexei"]
[Black "NovakRatko"]
[Result "1-0"]
[Board "108"]
[TimeControl "180+1"]
[WhiteFideId "4128206"]
[WhiteElo "2640"]
[BlackElo "2479"]
[WhiteTeam "RUS"]
[WhiteClock "0:00:03"]
[BlackClock "0:00:00"]

1. e4 {[%clk 0:03:00]}  d5 {[%clk 0:02:34]} 2. exd5 {[%clk 0:03:00]}  c6 {[%clk 0:02:34]} 3. dxc6 {[%clk 0:02:59]}  Nxc6 {[%clk 0:02:35]} 4. Nf3 {[%clk 0:02:59]}  e5 {[%clk 0:02:34]} 5. Nc3 {[%clk 0:02:53]}  Bd6 {[%clk 0:02:31]} 6. Bb5 {[%clk 0:02:48]}  Ne7 {[%clk 0:02:30]} 7. d4 {[%clk 0:02:44]}  exd4 {[%clk 0:02:30]} 8. Nxd4 {[%clk 0:02:43]}  O-O {[%clk 0:02:29]} 9. Nxc6 {[%clk 0:02:40]}  Nxc6 {[%clk 0:02:30]} 10. O-O {[%clk 0:02:33]}  Bf5 {[%clk 0:02:26]} 11. h3 {[%clk 0:02:17]}  Qc7 {[%clk 0:02:25]} 12. Bd3 {[%clk 0:02:08]}  Bh2+ {[%clk 0:02:20]} 13. Kh1 {[%clk 0:02:07]}  Rad8 {[%clk 0:02:20]} 14. g3 {[%clk 0:01:50]}  Bxg3 {[%clk 0:01:33]} 15. fxg3 {[%clk 0:01:49]}  Bxh3 {[%clk 0:01:29]} 16. Bf4 {[%clk 0:01:38]}  Qb6 {[%clk 0:01:23]} 17. Re1 {[%clk 0:01:09]}  Bf5 {[%clk 0:01:13]} 18. Ne4 {[%clk 0:01:07]}  Nb4 {[%clk 0:01:04]} 19. Qf3 {[%clk 0:00:55]}  Nxd3 {[%clk 0:01:00]} 20. cxd3 {[%clk 0:00:54]}  Qg6 {[%clk 0:00:45]} 21. Kg2 {[%clk 0:00:34]}  Bg4 {[%clk 0:00:42]} 22. Qe3 {[%clk 0:00:34]}  Rfe8 {[%clk 0:00:41]} 23. Qf2 {[%clk 0:00:26]}  f5 {[%clk 0:00:17]} 24. Nc5 {[%clk 0:00:20]}  Qc6+ {[%clk 0:00:14]} 25. Kg1 {[%clk 0:00:18]}  Rxe1+ {[%clk 0:00:12]} 26. Rxe1 {[%clk 0:00:18]}  b6 {[%clk 0:00:12]} 27. Ne6 {[%clk 0:00:11]}  Rxd3 {[%clk 0:00:11]} 28. Nd4 {[%clk 0:00:11]}  Qd7 {[%clk 0:00:10]} 29. Be3 {[%clk 0:00:08]}  h6 {[%clk 0:00:09]} 30. Qf4 {[%clk 0:00:06]}  Qd5 {[%clk 0:00:06]} 31. Kh2 {[%clk 0:00:03]}  Kh7 {[%clk 0:00:00]} 32. Rc1 {[%clk 0:00:03]} 1-0

[Event "December 5 Early 2023"]
[Site "https://www.chess.com"]
[Date "2023.12.05"]
[Round "6"]
[White "Zhurbinsky, David"]
[Black "Cesar Maestre, Bernardo"]
[Result "1-0"]
[Board "112"]
[TimeControl "180+1"]
[WhiteFideId "2072904"]
[BlackFideId "24542547"]
[WhiteElo "2611"]
[BlackElo "2429"]
[WhiteTeam "USA"]
[BlackTeam "ESP"]
[WhiteClock "0:01:59"]
[BlackClock "0:00:22"]

1. e4 {[%clk 0:02:59]}  c5 {[%clk 0:03:00]} 2. Nf3 {[%clk 0:02:57]}  d6 {[%clk 0:02:59]} 3. c3 {[%clk 0:02:58]}  Nf6 {[%clk 0:02:59]} 4. Be2 {[%clk 0:02:58]}  g6 {[%clk 0:03:00]} 5. O-O {[%clk 0:02:58]}  Bg7 {[%clk 0:03:01]} 6. Bb5+ {[%clk 0:02:59]}  Bd7 {[%clk 0:02:58]} 7. Bxd7+ {[%clk 0:02:59]}  Qxd7 {[%clk 0:02:59]} 8. Re1 {[%clk 0:03:00]}  O-O {[%clk 0:02:59]} 9. d4 {[%clk 0:03:01]}  cxd4 {[%clk 0:02:55]} 10. cxd4 {[%clk 0:03:02]}  d5 {[%clk 0:02:55]} 11. e5 {[%clk 0:03:01]}  Ne4 {[%clk 0:02:52]} 12. Nc3 {[%clk 0:03:02]}  Nxc3 {[%clk 0:02:49]} 13. bxc3 {[%clk 0:03:03]}  Nc6 {[%clk 0:02:50]} 14. h4 {[%clk 0:03:02]}  h5 {[%clk 0:02:46]} 15. Qd3 {[%clk 0:02:53]}  e6 {[%clk 0:02:44]} 16. Bg5 {[%clk 0:02:50]}  Rac8 {[%clk 0:02:40]} 17. Qe3 {[%clk 0:02:45]}  Na5 {[%clk 0:02:37]} 18. Bf6 {[%clk 0:02:35]}  Rc6 {[%clk 0:02:15]} 19. g4 {[%clk 0:02:16]}  hxg4 {[%clk 0:02:06]} 20. Nh2 {[%clk 0:02:16]}  Nc4 {[%clk 0:01:45]} 21. Qg5 {[%clk 0:02:12]}  Bxf6 {[%clk 0:01:19]} 22. exf6 {[%clk 0:02:13]}  e5 {[%clk 0:01:19]} 23. dxe5 {[%clk 0:02:03]}  Nxe5 {[%clk 0:00:22]} 24. Rxe5 {[%clk 0:01:59]} 1-0

[Event "December 5 Early 2023"]
[Site "https://www.chess.com"]
[Date "2023.12.05"]
[Round "6"]
[White "Espinoza Villanueva, Rodrigo"]
[Black "Tymrakiewicz, Rafal"]
[Result "0-1"]
[Board "113"]
[TimeControl "180+1"]
[WhiteFideId "5140188"]
[BlackFideId "1108832"]
[WhiteElo "2607"]
[BlackElo "2397"]
[WhiteTeam "MEX"]
[BlackTeam "POL"]
[WhiteClock "0:00:21"]
[BlackClock "0:00:06"]

1. d4 {[%clk 0:03:00]}  d5 {[%clk 0:02:58]} 2. c4 {[%clk 0:03:01]}  c6 {[%clk 0:02:57]} 3. Nc3 {[%clk 0:03:01]}  Nf6 {[%clk 0:02:58]} 4. Nf3 {[%clk 0:03:01]}  a6 {[%clk 0:02:56]} 5. c5 {[%clk 0:03:01]}  g6 {[%clk 0:02:50]} 6. Bf4 {[%clk 0:02:58]}  Bg7 {[%clk 0:02:50]} 7. h3 {[%clk 0:02:58]}  O-O {[%clk 0:02:50]} 8. e3 {[%clk 0:02:59]}  Nbd7 {[%clk 0:02:47]} 9. Bh2 {[%clk 0:02:58]}  Ne4 {[%clk 0:02:46]} 10. Bd3 {[%clk 0:02:51]}  Nxc3 {[%clk 0:02:45]} 11. bxc3 {[%clk 0:02:52]}  Qa5 {[%clk 0:02:41]} 12. Rc1 {[%clk 0:02:43]}  Re8 {[%clk 0:02:40]} 13. O-O {[%clk 0:02:42]}  e5 {[%clk 0:02:40]} 14. Nd2 {[%clk 0:02:37]}  Qxa2 {[%clk 0:02:01]} 15. Ra1 {[%clk 0:02:32]}  Qb2 {[%clk 0:02:01]} 16. Rc1 {[%clk 0:02:28]}  Qa3 {[%clk 0:01:58]} 17. Qc2 {[%clk 0:02:26]}  Qa5 {[%clk 0:01:56]} 18. Ra1 {[%clk 0:02:24]}  Qd8 {[%clk 0:01:56]} 19. Rfb1 {[%clk 0:02:25]}  e4 {[%clk 0:01:30]} 20. Be2 {[%clk 0:02:24]}  g5 {[%clk 0:01:30]} 21. Nb3 {[%clk 0:02:16]}  a5 {[%clk 0:01:25]} 22. Ra4 {[%clk 0:02:16]}  f5 {[%clk 0:01:06]} 23. Rba1 {[%clk 0:02:15]}  Rf8 {[%clk 0:01:06]} 24. c4 {[%clk 0:02:07]}  Nf6 {[%clk 0:00:54]} 25. cxd5 {[%clk 0:02:04]}  Nxd5 {[%clk 0:00:54]} 26. Nd2 {[%clk 0:01:57]}  Qe8 {[%clk 0:00:38]} 27. Nc4 {[%clk 0:01:55]}  Qg6 {[%clk 0:00:28]} 28. Rxa5 {[%clk 0:01:49]}  Rxa5 {[%clk 0:00:26]} 29. Rxa5 {[%clk 0:01:50]}  f4 {[%clk 0:00:22]} 30. Bg4 {[%clk 0:01:49]}  Bxg4 {[%clk 0:00:16]} 31. hxg4 {[%clk 0:01:50]}  h5 {[%clk 0:00:16]} 32. Qd1 {[%clk 0:01:41]}  f3 {[%clk 0:00:16]} 33. Bd6 {[%clk 0:01:33]}  hxg4 {[%clk 0:00:15]} 34. Bxf8 {[%clk 0:01:30]}  Bxf8 {[%clk 0:00:15]} 35. Ne5 {[%clk 0:01:27]}  Qh5 {[%clk 0:00:15]} 36. Ra8 {[%clk 0:01:22]}  g3 {[%clk 0:00:15]} 37. Nxf3 {[%clk 0:01:04]}  exf3 {[%clk 0:00:15]} 38. Qxf3 {[%clk 0:01:04]}  Qxf3 {[%clk 0:00:14]} 39. gxf3 {[%clk 0:01:05]}  Kf7 {[%clk 0:00:12]} 40. Rb8 {[%clk 0:00:58]}  g4 {[%clk 0:00:12]} 41. fxg4 {[%clk 0:00:56]}  Bh6 {[%clk 0:00:11]} 42. Rxb7+ {[%clk 0:00:55]}  Ke6 {[%clk 0:00:12]} 43. Rb3 {[%clk 0:00:44]}  gxf2+ {[%clk 0:00:11]} 44. Kxf2 {[%clk 0:00:45]}  Bg5 {[%clk 0:00:11]} 45. Kf3 {[%clk 0:00:45]}  Bh6 {[%clk 0:00:10]} 46. e4 {[%clk 0:00:43]}  Ne7 {[%clk 0:00:10]} 47. Rb1 {[%clk 0:00:41]}  Bg7 {[%clk 0:00:10]} 48. Ke3 {[%clk 0:00:39]}  Bh6+ {[%clk 0:00:10]} 49. Kd3 {[%clk 0:00:40]}  Ng6 {[%clk 0:00:11]} 50. Rh1 {[%clk 0:00:38]}  Nf4+ {[%clk 0:00:11]} 51. Kc4 {[%clk 0:00:38]}  Bg7 {[%clk 0:00:10]} 52. Rh6+ {[%clk 0:00:33]}  Bxh6 {[%clk 0:00:09]} 53. Kb4 {[%clk 0:00:24]}  Bg7 {[%clk 0:00:07]} 54. Kc4 {[%clk 0:00:23]}  Bh8 {[%clk 0:00:06]} 55. g5 {[%clk 0:00:22]}  Bg7 {[%clk 0:00:05]} 56. g6 {[%clk 0:00:21]}  Bf6 {[%clk 0:00:05]} 57. d5+ {[%clk 0:00:16]}  cxd5+ {[%clk 0:00:05]} 58. exd5+ {[%clk 0:00:16]}  Nxd5 {[%clk 0:00:05]} 59. Kb5 {[%clk 0:00:17]}  Kd7 {[%clk 0:00:05]} 60. c6+ {[%clk 0:00:17]}  Kc7 {[%clk 0:00:05]} 61. Kc5 {[%clk 0:00:18]}  Ne7 {[%clk 0:00:05]} 62. Kc4 {[%clk 0:00:16]}  Be5 {[%clk 0:00:03]} 63. Kd3 {[%clk 0:00:17]}  Kxc6 {[%clk 0:00:03]} 64. Ke4 {[%clk 0:00:17]}  Kd6 {[%clk 0:00:03]} 65. Kf3 {[%clk 0:00:18]}  Ke6 {[%clk 0:00:03]} 66. Kg4 {[%clk 0:00:19]}  Kf6 {[%clk 0:00:04]} 67. Kh5 {[%clk 0:00:19]}  Nxg6 {[%clk 0:00:03]} 68. Kh6 {[%clk 0:00:20]}  Nf4 {[%clk 0:00:03]} 69. Kh7 {[%clk 0:00:20]}  Kf7 {[%clk 0:00:04]} 70. Kh6 {[%clk 0:00:21]}  Bf6 {[%clk 0:00:04]} 71. Kh7 {[%clk 0:00:20]}  Ne6 {[%clk 0:00:04]} 72. Kh6 {[%clk 0:00:20]}  Nf4 {[%clk 0:00:05]} 73. Kh7 {[%clk 0:00:20]}  Bg5 {[%clk 0:00:05]} 74. Kh8 {[%clk 0:00:20]}  Ng6+ {[%clk 0:00:06]} 75. Kh7 {[%clk 0:00:20]}  Nf8+ {[%clk 0:00:06]} 76. Kh8 {[%clk 0:00:21]}  Bf6# {[%clk 0:00:06]} 0-1

[Event "December 5 Early 2023"]
[Site "https://www.chess.com"]
[Date "2023.12.05"]
[Round "6"]
[White "Truskavetsky, Alexandr"]
[Black "Batbold, Nyamsuren"]
[Result "1/2-1/2"]
[Board "114"]
[TimeControl "180+1"]
[WhiteFideId "14108577"]
[BlackFideId "4903331"]
[WhiteElo "2580"]
[BlackElo "2387"]
[WhiteTeam "RUS"]
[BlackTeam "MGL"]
[WhiteClock "0:00:13"]
[BlackClock "0:00:03"]

1. d4 {[%clk 0:02:59]}  Nf6 {[%clk 0:02:59]} 2. c4 {[%clk 0:02:59]}  e6 {[%clk 0:02:59]} 3. Nc3 {[%clk 0:02:59]}  Bb4 {[%clk 0:02:58]} 4. e3 {[%clk 0:02:58]}  d5 {[%clk 0:02:49]} 5. cxd5 {[%clk 0:02:58]}  exd5 {[%clk 0:02:48]} 6. a3 {[%clk 0:02:59]}  Bxc3+ {[%clk 0:02:47]} 7. bxc3 {[%clk 0:02:59]}  O-O {[%clk 0:02:48]} 8. Bd3 {[%clk 0:02:59]}  c6 {[%clk 0:02:47]} 9. Ne2 {[%clk 0:02:59]}  Nbd7 {[%clk 0:02:46]} 10. O-O {[%clk 0:03:00]}  Re8 {[%clk 0:02:46]} 11. a4 {[%clk 0:02:59]}  Nf8 {[%clk 0:02:43]} 12. Qc2 {[%clk 0:02:58]}  Ng6 {[%clk 0:02:43]} 13. f3 {[%clk 0:02:58]}  Qc7 {[%clk 0:02:38]} 14. e4 {[%clk 0:02:54]}  dxe4 {[%clk 0:02:36]} 15. fxe4 {[%clk 0:02:54]}  Bg4 {[%clk 0:02:36]} 16. e5 {[%clk 0:02:50]}  Bxe2 {[%clk 0:02:35]} 17. Bxe2 {[%clk 0:02:50]}  Nd5 {[%clk 0:02:36]} 18. Bc4 {[%clk 0:02:47]}  Qb6 {[%clk 0:02:29]} 19. a5 {[%clk 0:02:44]}  Qc7 {[%clk 0:02:27]} 20. Ba3 {[%clk 0:02:29]}  b5 {[%clk 0:02:26]} 21. axb6 {[%clk 0:02:26]}  axb6 {[%clk 0:02:26]} 22. Bd6 {[%clk 0:02:26]}  Qb7 {[%clk 0:02:25]} 23. Qf2 {[%clk 0:02:21]}  Ngf4 {[%clk 0:02:19]} 24. Kh1 {[%clk 0:02:03]}  b5 {[%clk 0:02:16]} 25. Bb3 {[%clk 0:02:02]}  Ne6 {[%clk 0:02:14]} 26. Bc2 {[%clk 0:01:56]}  Nxc3 {[%clk 0:02:06]} 27. Qh4 {[%clk 0:01:45]}  h6 {[%clk 0:01:59]} 28. Qh3 {[%clk 0:01:44]}  Nd5 {[%clk 0:01:19]} 29. Qd3 {[%clk 0:01:43]}  g6 {[%clk 0:01:17]} 30. Qd2 {[%clk 0:01:42]}  Kg7 {[%clk 0:01:11]} 31. Rae1 {[%clk 0:01:35]}  Ra2 {[%clk 0:01:09]} 32. Rf2 {[%clk 0:01:35]}  b4 {[%clk 0:01:05]} 33. Rb1 {[%clk 0:01:16]}  Nc3 {[%clk 0:00:46]} 34. Rbf1 {[%clk 0:00:44]}  Ne4 {[%clk 0:00:30]} 35. Rxf7+ {[%clk 0:00:43]}  Qxf7 {[%clk 0:00:29]} 36. Rxf7+ {[%clk 0:00:43]}  Kxf7 {[%clk 0:00:30]} 37. Qc1 {[%clk 0:00:44]}  Nxd6 {[%clk 0:00:29]} 38. exd6 {[%clk 0:00:42]}  Rea8 {[%clk 0:00:29]} 39. h4 {[%clk 0:00:29]}  Ra1 {[%clk 0:00:20]} 40. Bb1 {[%clk 0:00:29]}  Nxd4 {[%clk 0:00:17]} 41. Qf4+ {[%clk 0:00:28]}  Nf5 {[%clk 0:00:17]} 42. Qc4+ {[%clk 0:00:26]}  Kf6 {[%clk 0:00:16]} 43. Qxb4 {[%clk 0:00:26]}  Ke6 {[%clk 0:00:15]} 44. Kh2 {[%clk 0:00:25]}  Nxd6 {[%clk 0:00:15]} 45. Bxg6 {[%clk 0:00:25]}  R8a4 {[%clk 0:00:15]} 46. Qb3+ {[%clk 0:00:24]}  Kd7 {[%clk 0:00:14]} 47. Qg3 {[%clk 0:00:18]}  R1a3 {[%clk 0:00:14]} 48. Qf2 {[%clk 0:00:17]}  Ra2 {[%clk 0:00:12]} 49. Qf6 {[%clk 0:00:17]}  R2a3 {[%clk 0:00:07]} 50. Bh5 {[%clk 0:00:17]}  Ra5 {[%clk 0:00:07]} 51. Bg4+ {[%clk 0:00:17]}  Kc7 {[%clk 0:00:06]} 52. Qe7+ {[%clk 0:00:18]}  Kb6 {[%clk 0:00:06]} 53. Qxd6 {[%clk 0:00:18]}  R3a4 {[%clk 0:00:06]} 54. Bh3 {[%clk 0:00:18]}  Rc4 {[%clk 0:00:06]} 55. Qd8+ {[%clk 0:00:18]}  Kb5 {[%clk 0:00:06]} 56. Qb8+ {[%clk 0:00:18]}  Ka4 {[%clk 0:00:06]} 57. Be6 {[%clk 0:00:18]}  Rb4 {[%clk 0:00:06]} 58. Qg3 {[%clk 0:00:17]}  c5 {[%clk 0:00:06]} 59. Bd7+ {[%clk 0:00:17]}  Rab5 {[%clk 0:00:06]} 60. Bxb5+ {[%clk 0:00:17]}  Kxb5 {[%clk 0:00:07]} 61. Qd3+ {[%clk 0:00:17]}  c4 {[%clk 0:00:07]} 62. Qf5+ {[%clk 0:00:18]}  Ka4 {[%clk 0:00:07]} 63. Qf6 {[%clk 0:00:18]}  Kb3 {[%clk 0:00:07]} 64. Qxh6 {[%clk 0:00:19]}  c3 {[%clk 0:00:08]} 65. Qe6+ {[%clk 0:00:19]}  Kb2 {[%clk 0:00:08]} 66. Qe5 {[%clk 0:00:19]}  Rxh4+ {[%clk 0:00:08]} 67. Kg3 {[%clk 0:00:19]}  Rc4 {[%clk 0:00:08]} 68. Kf3 {[%clk 0:00:20]}  Kb3 {[%clk 0:00:08]} 69. Qb5+ {[%clk 0:00:20]}  Rb4 {[%clk 0:00:09]} 70. Qd3 {[%clk 0:00:20]}  Kb2 {[%clk 0:00:09]} 71. Qd6 {[%clk 0:00:19]}  Rb3 {[%clk 0:00:07]} 72. Qd4 {[%clk 0:00:19]}  Kb1 {[%clk 0:00:06]} 73. Ke2 {[%clk 0:00:17]}  c2 {[%clk 0:00:07]} 74. Qe4 {[%clk 0:00:17]}  Kb2 {[%clk 0:00:06]} 75. Qe5+ {[%clk 0:00:18]}  Kb1 {[%clk 0:00:06]} 76. Qd5 {[%clk 0:00:14]}  Rc3 {[%clk 0:00:04]} 77. Qb5+ {[%clk 0:00:13]}  Ka2 {[%clk 0:00:05]} 78. Qa5+ {[%clk 0:00:13]}  Kb3 {[%clk 0:00:05]} 79. Qb5+ {[%clk 0:00:13]}  Ka2 {[%clk 0:00:05]} 80. Qa4+ {[%clk 0:00:12]}  Kb2 {[%clk 0:00:05]} 81. Qb4+ {[%clk 0:00:13]}  Rb3 {[%clk 0:00:05]} 82. Qd4+ {[%clk 0:00:11]}  Kb1 {[%clk 0:00:05]} 83. Qe4 {[%clk 0:00:11]}  Kb2 {[%clk 0:00:05]} 84. Qe5+ {[%clk 0:00:12]}  Kb1 {[%clk 0:00:05]} 85. Qe6 {[%clk 0:00:12]}  Kb2 {[%clk 0:00:03]} 86. Qf6+ {[%clk 0:00:13]}  Kb1 {[%clk 0:00:03]} 87. Qf5 {[%clk 0:00:13]}  Kb2 {[%clk 0:00:03]} 88. Qe5+ {[%clk 0:00:13]} 1/2-1/2

[Event "December 5 Early 2023"]
[Site "https://www.chess.com"]
[Date "2023.12.05"]
[Round "6"]
[White "Aaditya Dhingra"]
[Black "Spichkin, Alexander"]
[Result "1-0"]
[Board "115"]
[TimeControl "180+1"]
[WhiteFideId "25678191"]
[BlackFideId "4144074"]
[WhiteElo "2576"]
[BlackElo "2371"]
[WhiteTeam "IND"]
[BlackTeam "RUS"]
[WhiteClock "0:01:47"]
[BlackClock "0:02:08"]

1. e4 {[%clk 0:02:59]}  e5 {[%clk 0:02:56]} 2. Nf3 {[%clk 0:02:59]}  d5 {[%clk 0:02:55]} 3. exd5 {[%clk 0:02:59]}  e4 {[%clk 0:02:52]} 4. Qe2 {[%clk 0:02:59]}  Nf6 {[%clk 0:02:51]} 5. Nc3 {[%clk 0:02:59]}  Be7 {[%clk 0:02:52]} 6. Nxe4 {[%clk 0:02:55]}  Nxd5 {[%clk 0:02:52]} 7. d3 {[%clk 0:02:52]}  O-O {[%clk 0:02:52]} 8. Bd2 {[%clk 0:02:47]}  Re8 {[%clk 0:02:51]} 9. O-O-O {[%clk 0:02:46]}  f5 {[%clk 0:02:51]} 10. Nc3 {[%clk 0:02:45]}  Nxc3 {[%clk 0:02:50]} 11. Bxc3 {[%clk 0:02:41]}  Bg5+ {[%clk 0:02:49]} 12. Nxg5 {[%clk 0:02:37]}  Rxe2 {[%clk 0:02:49]} 13. Bxe2 {[%clk 0:02:37]}  Qxg5+ {[%clk 0:02:49]} 14. Kb1 {[%clk 0:02:29]}  Nc6 {[%clk 0:02:48]} 15. h4 {[%clk 0:02:28]}  Qe7 {[%clk 0:02:45]} 16. Bf3 {[%clk 0:02:26]}  Qc5 {[%clk 0:02:44]} 17. d4 {[%clk 0:02:23]}  Qf8 {[%clk 0:02:39]} 18. d5 {[%clk 0:02:22]}  Ne7 {[%clk 0:02:33]} 19. Rhe1 {[%clk 0:02:18]}  Ng6 {[%clk 0:02:26]} 20. d6 {[%clk 0:01:53]}  cxd6 {[%clk 0:02:25]} 21. h5 {[%clk 0:01:50]}  Nh4 {[%clk 0:02:21]} 22. Bd5+ {[%clk 0:01:49]}  Kh8 {[%clk 0:02:20]} 23. h6 {[%clk 0:01:49]}  Bd7 {[%clk 0:02:14]} 24. hxg7+ {[%clk 0:01:48]}  Qxg7 {[%clk 0:02:14]} 25. Bxg7+ {[%clk 0:01:47]}  Kxg7 {[%clk 0:02:08]} 26. Re7+ {[%clk 0:01:47]} 1-0

[Event "December 5 Early 2023"]
[Site "https://www.chess.com"]
[Date "2023.12.05"]
[Round "6"]
[White "Novoselov, Roman"]
[Black "Barbot, Pierre"]
[Result "1-0"]
[Board "116"]
[TimeControl "180+1"]
[WhiteFideId "4135067"]
[BlackFideId "663727"]
[WhiteElo "2567"]
[BlackElo "2323"]
[WhiteTeam "RUS"]
[BlackTeam "FRA"]
[WhiteClock "0:01:26"]
[BlackClock "0:00:03"]

1. d4 {[%clk 0:02:59]}  Nf6 {[%clk 0:02:59]} 2. Nc3 {[%clk 0:02:58]}  d5 {[%clk 0:02:58]} 3. Bg5 {[%clk 0:02:58]}  c6 {[%clk 0:02:47]} 4. Nf3 {[%clk 0:02:55]}  h6 {[%clk 0:02:43]} 5. Bxf6 {[%clk 0:02:54]}  exf6 {[%clk 0:02:44]} 6. e4 {[%clk 0:02:53]}  dxe4 {[%clk 0:02:41]} 7. Nxe4 {[%clk 0:02:54]}  Be7 {[%clk 0:02:36]} 8. Bd3 {[%clk 0:02:51]}  O-O {[%clk 0:02:35]} 9. O-O {[%clk 0:02:48]}  Bg4 {[%clk 0:02:30]} 10. c3 {[%clk 0:02:47]}  Nd7 {[%clk 0:02:20]} 11. h3 {[%clk 0:02:46]}  Be6 {[%clk 0:02:11]} 12. Re1 {[%clk 0:02:42]}  f5 {[%clk 0:02:00]} 13. Ng3 {[%clk 0:02:39]}  g6 {[%clk 0:01:56]} 14. Rxe6 {[%clk 0:02:15]}  fxe6 {[%clk 0:01:36]} 15. Qb3 {[%clk 0:02:16]}  Rf6 {[%clk 0:01:25]} 16. Bc4 {[%clk 0:01:59]}  Nf8 {[%clk 0:01:20]} 17. Qxb7 {[%clk 0:01:49]}  Qc8 {[%clk 0:01:17]} 18. Qxe7 {[%clk 0:01:48]}  Rf7 {[%clk 0:01:07]} 19. Qa3 {[%clk 0:01:45]}  Rb8 {[%clk 0:00:56]} 20. Ne5 {[%clk 0:01:41]}  Rfb7 {[%clk 0:00:39]} 21. b3 {[%clk 0:01:41]}  Kg7 {[%clk 0:00:20]} 22. Re1 {[%clk 0:01:38]}  Rc7 {[%clk 0:00:16]} 23. Qc5 {[%clk 0:01:34]}  Qb7 {[%clk 0:00:09]} 24. h4 {[%clk 0:01:31]}  Rbc8 {[%clk 0:00:08]} 25. h5 {[%clk 0:01:30]}  g5 {[%clk 0:00:08]} 26. Ng6 {[%clk 0:01:28]}  Nd7 {[%clk 0:00:04]} 27. Qe7+ {[%clk 0:01:25]}  Kg8 {[%clk 0:00:03]} 28. Bxe6# {[%clk 0:01:26]} 1-0